fUSD/lending_fUSD_20241206
["ID","MTS","AMOUNT","RATE_DAILY","PERIOD"]
[344511746,1733524246754,-2000.0,8.218e-05,2]
[344511747,1733524246764,-755.93,8.218e-05,2]
[344511748,1733524246774,-496.66,8.218e-05,2]
[344511749,1733524246784,-498.46,8.218e-05,2]
[344511750,1733524246794,-500.75,8.218e-05,2]
[344511751,1733524246803,-506.42,8.218e-05,2]
[344511752,1733524246813,-502.65,8.218e-05,2]
[344511753,1733524246822,-150.99,8.218e-05,2]
[344511754,1733524246831,-509.79,8.219e-05,2]
[344511755,1733524246841,-491.85,8.219e-05,2]
[344511756,1733524246850,-595420.28909914,8.219e-05,2]
[344511757,1733524246863,-5771.94478685,8.219e-05,2]
[344511758,1733524246884,-724.42600817,8.219e-05,2]
[344511759,1733524246896,-201204.3127301,8.219e-05,2]
[344511760,1733524246929,-532.19886339,8.219e-05,2]
[344511761,1733524246940,-4029.76950855,8.219e-05,2]
[344511762,1733524264660,200.0,7.5e-05,2]
[344511763,1733524301653,150.0,0.0002,120]
[344511765,1733524486430,810.45,0.00016658,30]
[344511767,1733524650970,393.88,7.48e-05,2]
[344511768,1733524729236,214.66,7.48e-05,2]
[344511769,1733524787259,250.0,7.443e-05,2]
[344511770,1733524845930,250.0,7.443e-05,2]
[344511772,1733524948003,283.23,7.378e-05,2]
[344511773,1733525004458,1640.22,7.436e-05,2]
[344511774,1733525036230,1436.59,7.47e-05,2]
[344511775,1733525116759,1813.8660011,7.4e-05,2]
[344511776,1733525121363,769.92,0.00016658,30]
[344511777,1733525235073,400.0,7.5e-05,2]
[344511778,1733525340416,261.32,7.451e-05,2]
[344511786,1733525432247,-250.0,7.539e-05,2]
[344511787,1733525432257,-898.38,7.539e-05,2]
[344511788,1733525432267,-800.0,7.6e-05,2]
[344511789,1733525432277,-794.65734486,7.677e-05,2]
[344511790,1733525432287,-236.4557994,7.678e-05,2]
[344511791,1733525432300,-29.20572914,7.678e-05,2]
[344511792,1733525432310,-335.24606736,7.678e-05,2]
[344511793,1733525432320,-200.0,7.678e-05,2]
[344511794,1733525432330,-595.99300865,7.678e-05,2]
[344511795,1733525432339,-166.28544459,7.678e-05,2]
[344511796,1733525432351,-33.71455541,7.678e-05,2]
[344511797,1733525432363,-595.99300865,7.678e-05,2]
[344511798,1733525432373,-467.0302009,7.679e-05,2]
[344511799,1733525432384,-1238.04,7.679e-05,2]
[344511800,1733525432418,-948.54874961,7.679e-05,2]
[344511801,1733525432428,-200.0,7.679e-05,2]
[344511802,1733525432437,-55.95125044,7.679e-05,2]
[344511803,1733525432488,-144.04874956,7.679e-05,2]
[344511804,1733525432497,-200.0,7.68e-05,2]
[344511805,1733525432507,-265.66152854,7.68e-05,2]
[344511806,1733525432516,-94.86887011,7.68e-05,2]
[344511807,1733525432528,-964.67425638,7.68e-05,2]
[344511808,1733525432540,-1641.18913729,7.68e-05,2]
[344511809,1733525432552,-349.02507559,7.68e-05,2]
[344511810,1733525432561,-839.62162106,7.68e-05,2]
[344511811,1733525432571,-200.0,7.68e-05,2]
[344511812,1733525432580,-595.99300865,7.681e-05,2]
[344511813,1733525432589,-158.76851726,7.681e-05,2]
[344511814,1733525432600,-41.23148274,7.681e-05,2]
[344511815,1733525432610,-1141.47943439,7.681e-05,2]
[344511816,1733525432626,-271.24473426,7.681e-05,2]
[344511817,1733525432635,-446.99475649,7.681e-05,2]
[344511818,1733525432644,-200.0,7.681e-05,2]
[344511819,1733525432654,-265.66152854,7.681e-05,2]
[344511820,1733525432666,-446.99475649,7.681e-05,2]
[344511821,1733525432675,-794.65734486,7.681e-05,2]
[344511822,1733525432684,-472.28716185,7.681e-05,2]
[344511823,1733525432693,-595.99300865,7.681e-05,2]
[344511824,1733525432703,-1990.21421288,7.682e-05,2]
[344511825,1733525432713,-365.95249598,7.682e-05,2]
[344511826,1733525432726,-364.36736975,7.682e-05,2]
[344511830,1733525432773,-389.17562902,7.682e-05,2]
[344511831,1733525432782,-251.43455052,7.682e-05,2]
[344511832,1733525432792,-629.7162158,7.682e-05,2]
[344511834,1733525432802,-20.67907334,7.682e-05,2]
[344511838,1733525432885,-179.32092666,7.682e-05,2]
[344511840,1733525432896,-200.0,7.682e-05,2]
[344511842,1733525432905,-200.0,7.682e-05,2]
[344511844,1733525432915,-682.48548132,7.682e-05,2]
[344511846,1733525432926,-1994.48349657,7.682e-05,2]
[344511847,1733525432939,-671.71053304,7.682e-05,2]
[344511848,1733525432949,-151.18946696,7.682e-05,2]
[344511849,1733525432961,-643.4678779,7.682e-05,2]
[344511850,1733525432971,-491.1121221,7.682e-05,2]
[344511851,1733525432982,-303.54522276,7.682e-05,2]
[344511852,1733525432991,-639.95814109,7.683e-05,2]
[344511854,1733525438134,-2013.66080942,7.683e-05,2]
[344511855,1733525438143,-1990.21421288,7.683e-05,2]
[344511856,1733525438152,-1119.49549475,7.683e-05,2]
[344511857,1733525438162,-200.0,7.683e-05,2]
[344511858,1733525438171,-472.28716185,7.683e-05,2]
[344511859,1733525438181,-200.0,7.683e-05,2]
[344511860,1733525438190,-1883.632225,7.683e-05,2]
[344511861,1733525438199,-794.65734486,7.683e-05,2]
[344511862,1733525438209,-446.99475649,7.683e-05,2]
[344511863,1733525438219,-446.99475649,7.684e-05,2]
[344511864,1733525438228,-251.43455052,7.684e-05,2]
[344511865,1733525438238,-200.0,7.684e-05,2]
[344511866,1733525438247,-200.0,7.684e-05,2]
[344511867,1733525438256,-251.43455052,7.684e-05,2]
[344511868,1733525438265,-379.92406807,7.684e-05,2]
[344511869,1733525438276,-496.99999,7.684e-05,2]
[344511870,1733525438288,-563.16751559,7.684e-05,2]
[344511871,1733525438388,-1213.52737685,7.684e-05,2]
[344511872,1733525438398,-768.13501955,7.685e-05,2]
[344511873,1733525438410,-293.41592646,7.685e-05,2]
[344511875,1733525438492,-57.94454874,7.685e-05,2]
[344511876,1733525438502,-200.0,7.685e-05,2]
[344511877,1733525438512,-200.0,7.685e-05,2]
[344511878,1733525438521,-565.8022506,7.685e-05,2]
[344511881,1733525438532,-2782.87726033,7.685e-05,2]
[344511883,1733525438543,-859.44273967,7.685e-05,2]
[344511889,1733525440110,-200.10038682,7.685e-05,2]
[344511890,1733525440120,-1492.66065966,7.685e-05,2]
[344511891,1733525440130,-472.28716185,7.685e-05,2]
[344511892,1733525440139,-3348.67951093,7.686e-05,2]
[344511893,1733525440149,-1883.632225,7.686e-05,2]
[344511894,1733525440158,-200.0,7.686e-05,2]
[344511895,1733525440167,-200.0,7.686e-05,2]
[344511896,1733525440177,-3348.67951093,7.686e-05,2]
[344511897,1733525440186,-200.0,7.686e-05,2]
[344511898,1733525440196,-200.0,7.686e-05,2]
[344511899,1733525440205,-464.10239262,7.687e-05,2]
[344511900,1733525440217,-165.61382318,7.687e-05,2]
[344511901,1733525440226,-306.0020871,7.687e-05,2]
[344511902,1733525440266,-289.99092155,7.687e-05,2]
[344511903,1733525440276,-493.4573223,7.687e-05,2]
[344511904,1733525440287,-642.97607776,7.687e-05,2]
[344511905,1733525440299,-853.78081282,7.687e-05,2]
[344511906,1733525440308,-1990.21421288,7.687e-05,2]
[344511907,1733525440318,-335.24606736,7.687e-05,2]
[344511908,1733525440327,-1059.54312649,7.688e-05,2]
[344511909,1733525440337,-354.21537138,7.688e-05,2]
[344511910,1733525440346,-1883.632225,7.688e-05,2]
[344511911,1733525440355,-2511.5096332,7.688e-05,2]
[344511912,1733525440366,-839.62162106,7.688e-05,2]
[344511913,1733525440375,-200.0,7.688e-05,2]
[344511914,1733525440386,-2511.5096332,7.689e-05,2]
[344511915,1733525440396,-354.21537138,7.689e-05,2]
[344511916,1733525440406,-2653.61895051,7.689e-05,2]
[344511917,1733525440417,-354.21537138,7.689e-05,2]
[344511918,1733525440426,-200.0,7.689e-05,2]
[344511919,1733525440436,-1119.49549475,7.689e-05,2]
[344511920,1733525440445,-839.62162106,7.689e-05,2]
[344511921,1733525440455,-1492.66065966,7.689e-05,2]
[344511922,1733525440465,-1990.21421288,7.689e-05,2]
[344511923,1733525440475,-251.43455052,7.689e-05,2]
[344511924,1733525440484,-1412.72416865,7.69e-05,2]
[344511925,1733525440494,-265.66152854,7.69e-05,2]
[344511926,1733525440503,-1059.54312649,7.69e-05,2]
[344511927,1733525440512,-200.0,7.691e-05,2]
[344511928,1733525440522,-200.0,7.691e-05,2]
[344511929,1733525440531,-2511.5096332,7.691e-05,2]
[344511930,1733525440540,-1883.632225,7.691e-05,2]
[344511931,1733525440551,-251.43455052,7.691e-05,2]
[344511932,1733525440561,-2511.5096332,7.691e-05,2]
[344511933,1733525440571,-472.28716185,7.691e-05,2]
[344511934,1733525440581,-200.0,7.691e-05,2]
[344511935,1733525440590,-200.0,7.692e-05,2]
[344511936,1733525440600,-335.24606736,7.692e-05,2]
[344511937,1733525440610,-200.0,7.692e-05,2]
[344511938,1733525440620,-200.0,7.693e-05,2]
[344511939,1733525440629,-839.62162106,7.693e-05,2]
[344511941,1733525440639,-629.7162158,7.693e-05,2]
[344511943,1733525440648,-1492.66065966,7.694e-05,2]
[344511945,1733525440657,-1119.49549475,7.694e-05,2]
[344511947,1733525440669,-1492.66065966,7.694e-05,2]
[344511949,1733525440679,-595.99300865,7.694e-05,2]
[344511952,1733525440693,-200.0,7.694e-05,2]
[344511954,1733525440703,-200.0,7.694e-05,2]
[344511956,1733525440714,-1412.72416865,7.694e-05,2]
[344511957,1733525440723,-629.7162158,7.694e-05,2]
[344511958,1733525440733,-200.0,7.694e-05,2]
[344511959,1733525440742,-1412.72416865,7.694e-05,2]
[344511960,1733525440752,-1059.54312649,7.694e-05,2]
[344511961,1733525440762,-354.21537138,7.694e-05,2]
[344511962,1733525440771,-265.66152854,7.695e-05,2]
[344511963,1733525440782,-472.28716185,7.695e-05,2]
[344511964,1733525440792,-200.0,7.695e-05,2]
[344511965,1733525440803,-1119.49549475,7.695e-05,2]
[344511966,1733525440812,-200.0,7.695e-05,2]
[344511967,1733525440822,-2653.61895051,7.695e-05,2]
[344511968,1733525440831,-2511.5096332,7.695e-05,2]
[344511969,1733525440841,-1883.632225,7.696e-05,2]
[344511970,1733525440851,-200.0,7.696e-05,2]
[344511971,1733525440862,-200.0,7.696e-05,2]
[344511972,1733525440872,-354.21537138,7.696e-05,2]
[344511973,1733525440881,-335.24606736,7.696e-05,2]
[344511974,1733525440891,-2511.5096332,7.697e-05,2]
[344511975,1733525440900,-354.21537138,7.697e-05,2]
[344511976,1733525440910,-335.24606736,7.697e-05,2]
[344511977,1733525440919,-839.62162106,7.697e-05,2]
[344511978,1733525440929,-251.43455052,7.697e-05,2]
[344511979,1733525440938,-472.28716185,7.698e-05,2]
[344511980,1733525440948,-200.0,7.698e-05,2]
[344511981,1733525440957,-200.0,7.698e-05,2]
[344511982,1733525440967,-200.0,7.698e-05,2]
[344511983,1733525440977,-1492.66065966,7.698e-05,2]
[344511984,1733525440987,-794.65734486,7.698e-05,2]
[344511985,1733525440998,-265.66152854,7.698e-05,2]
[344511986,1733525441009,-335.24606736,7.698e-05,2]
[344511987,1733525441019,-200.0,7.698e-05,2]
[344511988,1733525441028,-2653.61895051,7.698e-05,2]
[344511989,1733525441038,-1412.72416865,7.698e-05,2]
[344511990,1733525441049,-1412.72416865,7.698e-05,2]
[344511991,1733525441059,-1492.66065966,7.698e-05,2]
[344511992,1733525441069,-446.99475649,7.699e-05,2]
[344511993,1733525441078,-1059.54312649,7.699e-05,2]
[344511994,1733525441088,-200.0,7.699e-05,2]
[344511995,1733525441097,-1883.632225,7.699e-05,2]
[344511996,1733525441107,-200.0,7.699e-05,2]
[344511997,1733525441116,-200.0,7.699e-05,2]
[344511998,1733525441126,-839.62162106,7.7e-05,2]
[344511999,1733525441135,-200.0,7.7e-05,2]
[344512000,1733525441145,-3348.67951093,7.7e-05,2]
[344512001,1733525441156,-629.7162158,7.7e-05,2]
[344512002,1733525441165,-629.7162158,7.7e-05,2]
[344512003,1733525441175,-200.0,7.7e-05,2]
[344512004,1733525441184,-3348.67951093,7.7e-05,2]
[344512005,1733525441194,-446.99475649,7.7e-05,2]
[344512006,1733525441203,-1200.0,7.7e-05,2]
[344512007,1733525441213,-1600.0,7.8e-05,2]
[344512008,1733525441224,-150.0,7.863e-05,2]
[344512009,1733525441234,-2100.0,7.9e-05,2]
[344512010,1733525441244,-500.0,7.918e-05,2]
[344512011,1733525441254,-250.0,7.988e-05,2]
[344512012,1733525441264,-400.0,8e-05,2]
[344512013,1733525441274,-150.0,8.023e-05,2]
[344512014,1733525441284,-500.0,8.193e-05,2]
[344512015,1733525441293,-292.54,8.2e-05,2]
[344512016,1733525441304,-150.0,8.217e-05,2]
[344512017,1733525441314,-300.0,8.217e-05,2]
[344512018,1733525441324,-2000.0,8.218e-05,2]
[344512019,1733525441333,-1000.0,8.218e-05,2]
[344512020,1733525441343,-1000.0,8.218e-05,2]
[344512021,1733525441353,-1000.0,8.218e-05,2]
[344512022,1733525441362,-1000.0,8.218e-05,2]
[344512023,1733525441372,-1000.0,8.218e-05,3]
[344512024,1733525441382,-1000.0,8.218e-05,3]
[344512025,1733525441391,-1000.0,8.218e-05,3]
[344512026,1733525441401,-1114.4821921,8.218e-05,3]
[344512027,1733525441680,-724.43,8.218e-05,2]
[344512028,1733525441751,-494.06,8.219e-05,2]
[344512029,1733525441762,-54134.70955051,8.219e-05,2]
[344512030,1733525441783,-2447.71477696,8.219e-05,2]
[344512031,1733525441794,-1308.26995,8.219e-05,2]
[344512032,1733525441806,-5374.76455468,8.219e-05,2]
[344512033,1733525441818,-12790.10670477,8.219e-05,2]
[344512034,1733525441830,-300.00410271,8.219e-05,2]
[344512035,1733525441844,-14334.21546025,8.219e-05,2]
[344512036,1733525441856,-1869.93813432,8.219e-05,2]
[344512052,1733525443224,-12099.6,8.219e-05,2]
[344512053,1733525443396,-3498.47199671,8.219e-05,2]
[344512054,1733525443587,-5290.75747852,8.219e-05,2]
[344512055,1733525443598,-2974.37264608,8.219e-05,2]
[344512056,1733525443609,-15579.95502124,8.219e-05,2]
[344512057,1733525443621,-21429.83310197,8.219e-05,2]
[344512058,1733525443635,-27409.8917965,8.219e-05,2]
[344512059,1733525443646,-4199.21033416,8.219e-05,2]
[344512061,1733525443659,-3316.56254036,8.219e-05,2]
[344512062,1733525443673,-10516.1099331,8.219e-05,2]
[344512063,1733525443683,-2922.02877737,8.219e-05,2]
[344512070,1733525446233,-1693.13114464,8.219e-05,2]
[344512071,1733525446244,-597.05857473,8.219e-05,2]
[344512072,1733525446256,-848.20881815,8.219e-05,2]
[344512073,1733525446268,-1231.95386987,8.219e-05,2]
[344512074,1733525446279,-4196.6989,8.219e-05,2]
[344512075,1733525446290,-9521.6245892,8.219e-05,2]
[344512076,1733525446325,-7422.72635279,8.219e-05,2]
[344512077,1733525446372,-6052.93368071,8.219e-05,2]
[344512078,1733525648363,150.0,0.00018,60]
[344512080,1733525805147,731.42,0.00016658,30]
[344512106,1733525844717,250.0,7.481e-05,2]
[344512107,1733525850259,150.0,7.481e-05,2]
[344512129,1733526048620,507.81,7.434e-05,2]
[344512130,1733526087650,250.0,7.379e-05,2]
[344512131,1733526246065,250.0,7.417e-05,2]
[344512133,1733526395289,2000.0,7.438e-05,2]
[344512134,1733526403751,694.84,0.00016658,30]
[344512135,1733526435071,150.0,7.433e-05,2]
[344512140,1733526632424,-688.41700763,7.677e-05,2]
[344512141,1733526632435,-2331.32555382,7.677e-05,2]
[344512142,1733526632447,-1382.26331088,7.677e-05,2]
[344512143,1733526632456,-200.0,7.677e-05,2]
[344512144,1733526632466,-523.60541756,7.678e-05,2]
[344512145,1733526632476,-220.89603554,7.678e-05,2]
[344512146,1733526632486,-2476.12830318,7.678e-05,2]
[344512147,1733526632496,-698.14055675,7.679e-05,2]
[344512148,1733526632506,-294.52804738,7.679e-05,2]
[344512149,1733526632516,-2476.12830318,7.679e-05,2]
[344512150,1733526632525,-392.70406317,7.68e-05,2]
[344512151,1733526632535,-7825.78821747,7.68e-05,2]
[344512152,1733526632544,-200.0,7.681e-05,2]
[344512153,1733526632554,-698.14055675,7.681e-05,2]
[344512154,1733526632563,-392.70406317,7.681e-05,2]
[344512155,1733526632573,-392.70406317,7.682e-05,2]
[344512156,1733526632582,-294.52804738,7.682e-05,2]
[344512157,1733526632591,-220.89603554,7.682e-05,2]
[344512158,1733526632600,-7825.78821747,7.683e-05,2]
[344512159,1733526632609,-220.89603554,7.683e-05,2]
[344512160,1733526632619,-3301.50440425,7.683e-05,2]
[344512161,1733526632629,-200.0,7.684e-05,2]
[344512162,1733526632638,-4402.00587233,7.684e-05,2]
[344512163,1733526632648,-200.0,7.684e-05,2]
[344512164,1733526632658,-7825.78821747,7.684e-05,2]
[344512165,1733526632667,-200.0,7.684e-05,2]
[344512166,1733526632676,-5869.3411631,7.684e-05,2]
[344512167,1733526632686,-200.0,7.685e-05,2]
[344512168,1733526632696,-523.60541756,7.685e-05,2]
[344512169,1733526632705,-523.60541756,7.685e-05,2]
[344512170,1733526632715,-392.70406317,7.685e-05,2]
[344512171,1733526632725,-5869.3411631,7.685e-05,2]
[344512172,1733526632734,-698.14055675,7.686e-05,2]
[344512173,1733526632743,-5869.3411631,7.686e-05,2]
[344512174,1733526632753,-200.0,7.686e-05,2]
[344512176,1733526632763,-294.52804738,7.686e-05,2]
[344512178,1733526632772,-200.0,7.686e-05,2]
[344512180,1733526632781,-200.0,7.687e-05,2]
[344512182,1733526632791,-200.0,7.688e-05,2]
[344512184,1733526632800,-5869.3411631,7.688e-05,2]
[344512186,1733526632810,-2476.12830318,7.688e-05,2]
[344512188,1733526632819,-200.0,7.688e-05,2]
[344512190,1733526632827,-200.0,7.689e-05,2]
[344512192,1733526632841,-200.0,7.689e-05,2]
[344512193,1733526632850,-4402.00587233,7.689e-05,2]
[344512195,1733526632859,-7825.78821747,7.69e-05,2]
[344512196,1733526632869,-4402.00587233,7.69e-05,2]
[344512198,1733526632879,-523.60541756,7.69e-05,2]
[344512200,1733526632888,-200.0,7.69e-05,2]
[344512203,1733526632898,-3301.50440425,7.691e-05,2]
[344512205,1733526632907,-220.89603554,7.691e-05,2]
[344512207,1733526632916,-200.0,7.691e-05,2]
[344512209,1733526632926,-200.0,7.691e-05,2]
[344512211,1733526632936,-294.52804738,7.692e-05,2]
[344512213,1733526632945,-698.14055675,7.692e-05,2]
[344512215,1733526632954,-392.70406317,7.692e-05,2]
[344512217,1733526632964,-200.0,7.692e-05,2]
[344512219,1733526632974,-3301.50440425,7.693e-05,2]
[344512221,1733526632983,-2476.12830318,7.693e-05,2]
[344512223,1733526632993,-200.0,7.693e-05,2]
[344512225,1733526633004,-200.0,7.693e-05,2]
[344512227,1733526633017,-523.60541756,7.693e-05,2]
[344512229,1733526633026,-200.0,7.694e-05,2]
[344512231,1733526633037,-200.0,7.694e-05,2]
[344512233,1733526633048,-200.0,7.695e-05,2]
[344512235,1733526633057,-4402.00587233,7.695e-05,2]
[344512237,1733526633066,-7825.78821747,7.695e-05,2]
[344512238,1733526633075,-5869.3411631,7.695e-05,2]
[344512240,1733526633085,-5869.3411631,7.695e-05,2]
[344512242,1733526633095,-3301.50440425,7.695e-05,2]
[344512244,1733526633105,-3301.50440425,7.696e-05,2]
[344512246,1733526633114,-200.0,7.696e-05,2]
[344512248,1733526633124,-200.0,7.696e-05,2]
[344512250,1733526633133,-200.0,7.696e-05,2]
[344512252,1733526633142,-200.0,7.697e-05,2]
[344512254,1733526633151,-4402.00587233,7.697e-05,2]
[344512256,1733526633161,-200.0,7.697e-05,2]
[344512258,1733526633171,-200.0,7.697e-05,2]
[344512260,1733526633180,-698.14055675,7.698e-05,2]
[344512262,1733526633189,-392.70406317,7.698e-05,2]
[344512264,1733526633199,-698.14055675,7.698e-05,2]
[344512266,1733526633208,-7825.78821747,7.698e-05,2]
[344512268,1733526633218,-2476.12830318,7.699e-05,2]
[344512270,1733526633227,-294.52804738,7.699e-05,2]
[344512272,1733526633236,-3301.50440425,7.699e-05,2]
[344512274,1733526633246,-523.60541756,7.699e-05,2]
[344512276,1733526633256,-220.89603554,7.699e-05,2]
[344512279,1733526633265,-200.0,7.699e-05,2]
[344512282,1733526633274,-294.52804738,7.699e-05,2]
[344512284,1733526633284,-220.89603554,7.699e-05,2]
[344512286,1733526633294,-200.0,7.7e-05,2]
[344512288,1733526633304,-2476.12830318,7.7e-05,2]
[344512290,1733526633314,-300.0,8.124e-05,2]
[344512292,1733526633323,-507.87,8.124e-05,2]
[344512294,1733526633333,-492.27,8.124e-05,2]
[344512296,1733526633343,-509.44,8.124e-05,2]
[344512298,1733526633352,-492.61,8.124e-05,2]
[344512300,1733526633362,-501.19,8.124e-05,2]
[344512302,1733526633371,-503.52,8.124e-05,2]
[344512304,1733526633380,-497.08,8.124e-05,2]
[344512306,1733526633389,-498.68,8.125e-05,2]
[344512308,1733526633399,-498.25,8.125e-05,2]
[344512310,1733526633408,-503.79,8.125e-05,2]
[344512312,1733526633418,-508.51,8.125e-05,2]
[344512314,1733526633428,-508.4,8.125e-05,2]
[344512316,1733526633437,-490.84,8.125e-05,2]
[344512318,1733526633447,-507.13,8.125e-05,2]
[344512327,1733526633748,-509.87,8.125e-05,2]
[344512328,1733526633765,-493.06,8.125e-05,2]
[344512329,1733526633775,-505.54,8.125e-05,2]
[344512330,1733526633784,-497.33,8.125e-05,2]
[344512331,1733526633794,-501.41,8.125e-05,2]
[344512332,1733526633804,-509.34,8.14e-05,2]
[344512333,1733526633813,-505.47,8.16e-05,2]
[344512334,1733526633823,-496.31,8.179e-05,2]
[344512335,1733526633832,-509.79,8.182e-05,2]
[344512336,1733526633841,-502.84,8.186e-05,2]
[344512337,1733526633850,-500.0,8.193e-05,2]
[344512338,1733526633860,-2086.258,8.211e-05,2]
[344512339,1733526633869,-166.651,8.211e-05,2]
[344512340,1733526633878,-150.0,8.211e-05,2]
[344512341,1733526633888,-3595.105395,8.212e-05,2]
[344512342,1733526633898,-3866.5854127,8.212e-05,2]
[344512343,1733526633907,-613.9627384,8.212e-05,2]
[344512344,1733526633917,-7001.8655665,8.212e-05,2]
[344512345,1733526633927,-4910.9216449,8.212e-05,2]
[344512346,1733526633936,-838.7269661,8.212e-05,2]
[344512347,1733526633946,-1584.9248547,8.212e-05,2]
[344512348,1733526633956,-1128.82278919,8.218e-05,2]
[344512349,1733526633965,-1128.82278919,8.218e-05,2]
[344512350,1733526633974,-1128.82278919,8.218e-05,2]
[344512351,1733526633983,-1128.82278919,8.218e-05,2]
[344512352,1733526633993,-1128.82278919,8.218e-05,2]
[344512353,1733526634005,-150.0,8.218e-05,3]
[344512354,1733526634018,-150.0,8.218e-05,3]
[344512355,1733526634028,-150.0,8.218e-05,3]
[344512356,1733526634038,-150.0,8.218e-05,3]
[344512357,1733526634047,-150.0,8.218e-05,3]
[344512358,1733526634058,-150.0,8.218e-05,3]
[344512359,1733526634068,-150.0,8.218e-05,3]
[344512360,1733526634077,-150.0,8.218e-05,3]
[344512361,1733526634086,-150.0,8.218e-05,3]
[344512362,1733526634098,-150.0,8.218e-05,2]
[344512363,1733526634108,-150.0,8.218e-05,2]
[344512364,1733526634118,-150.0,8.218e-05,2]
[344512365,1733526634128,-150.0,8.218e-05,2]
[344512366,1733526634137,-150.0,8.218e-05,2]
[344512367,1733526634146,-150.0,8.218e-05,2]
[344512368,1733526634156,-150.0,8.218e-05,2]
[344512369,1733526634165,-150.0,8.218e-05,2]
[344512370,1733526634174,-150.0,8.218e-05,2]
[344512371,1733526634183,-2000.0,8.218e-05,2]
[344512372,1733526634192,-789.49,8.218e-05,2]
[344512373,1733526634202,-1000.0,8.218e-05,2]
[344512374,1733526634211,-1000.0,8.218e-05,2]
[344512375,1733526634220,-1000.0,8.218e-05,2]
[344512376,1733526634229,-1000.0,8.218e-05,2]
[344512377,1733526634238,-1000.0,8.218e-05,2]
[344512378,1733526634249,-641.0,8.218e-05,2]
[344512379,1733526634258,-1000.0,8.218e-05,2]
[344512380,1733526634267,-1000.0,8.218e-05,2]
[344512381,1733526634276,-1000.0,8.218e-05,2]
[344512382,1733526634286,-1000.0,8.218e-05,2]
[344512383,1733526634295,-1000.0,8.218e-05,2]
[344512384,1733526634305,-1000.0,8.218e-05,2]
[344512385,1733526634315,-1000.0,8.218e-05,2]
[344512386,1733526634324,-1000.0,8.218e-05,2]
[344512387,1733526634334,-1000.0,8.218e-05,2]
[344512388,1733526634344,-1000.0,8.218e-05,2]
[344512389,1733526634353,-1000.0,8.218e-05,2]
[344512390,1733526634362,-1000.0,8.218e-05,2]
[344512391,1733526634372,-1000.0,8.218e-05,2]
[344512392,1733526634381,-1000.0,8.218e-05,2]
[344512393,1733526634390,-1000.0,8.218e-05,2]
[344512394,1733526634399,-1000.0,8.218e-05,2]
[344512395,1733526634409,-1000.0,8.218e-05,2]
[344512396,1733526634417,-1000.0,8.218e-05,2]
[344512397,1733526634426,-1000.0,8.218e-05,2]
[344512398,1733526634436,-1000.0,8.218e-05,2]
[344512399,1733526634445,-1000.0,8.218e-05,2]
[344512400,1733526634454,-1000.0,8.218e-05,2]
[344512401,1733526634463,-1000.0,8.218e-05,2]
[344512402,1733526634472,-1000.0,8.218e-05,2]
[344512403,1733526634482,-1000.0,8.218e-05,2]
[344512404,1733526634491,-1000.0,8.218e-05,2]
[344512405,1733526634503,-1000.0,8.218e-05,2]
[344512406,1733526634512,-1000.0,8.218e-05,2]
[344512407,1733526634521,-1000.0,8.218e-05,2]
[344512408,1733526634530,-1000.0,8.218e-05,2]
[344512409,1733526634539,-1000.0,8.218e-05,2]
[344512410,1733526634548,-1000.0,8.218e-05,2]
[344512411,1733526634556,-1000.0,8.218e-05,2]
[344512412,1733526634566,-1000.0,8.218e-05,2]
[344512413,1733526634575,-1000.0,8.218e-05,2]
[344512414,1733526634584,-1000.0,8.218e-05,2]
[344512415,1733526634594,-1000.0,8.218e-05,2]
[344512416,1733526634604,-1000.0,8.218e-05,2]
[344512417,1733526634613,-1000.0,8.218e-05,2]
[344512418,1733526634622,-1000.0,8.218e-05,2]
[344512419,1733526634632,-1000.0,8.218e-05,2]
[344512420,1733526634641,-1000.0,8.218e-05,2]
[344512421,1733526634650,-1000.0,8.218e-05,2]
[344512422,1733526634659,-1000.0,8.218e-05,2]
[344512423,1733526634668,-1000.0,8.218e-05,2]
[344512424,1733526634677,-1000.0,8.218e-05,2]
[344512425,1733526634687,-1000.0,8.218e-05,2]
[344512426,1733526634696,-1000.0,8.218e-05,2]
[344512427,1733526634706,-1000.0,8.218e-05,2]
[344512428,1733526634715,-1000.0,8.218e-05,2]
[344512429,1733526634724,-1000.0,8.218e-05,2]
[344512430,1733526634733,-1000.0,8.218e-05,2]
[344512431,1733526634742,-1000.0,8.218e-05,2]
[344512432,1733526634753,-1000.0,8.218e-05,2]
[344512433,1733526634763,-1000.0,8.218e-05,2]
[344512434,1733526634772,-1000.0,8.218e-05,2]
[344512435,1733526634781,-1000.0,8.218e-05,2]
[344512436,1733526634790,-1000.0,8.218e-05,2]
[344512437,1733526634799,-1000.0,8.218e-05,2]
[344512438,1733526634809,-1000.0,8.218e-05,2]
[344512439,1733526634818,-1000.0,8.218e-05,2]